fUSD/lending_fUSD_20240503
["ID","MTS","AMOUNT","RATE_DAILY","PERIOD"]
[325328608,1714731039366,-2140.57,0.00021918,2]
[325328609,1714731039376,-2000.0,0.00021918,2]
[325328610,1714731039386,-1820.11,0.00021918,3]
[325328611,1714731039396,-150.0,0.00021918,2]
[325328612,1714731039405,-550.0,0.00022,3]
[325328613,1714731039415,-155.15237881,0.00022381,2]
[325328614,1714731039425,-224.71028306,0.0002341,2]
[325328615,1714731039434,-1000.0,0.0002342,2]
[325328616,1714731039444,-964.55735073,0.0002355,2]
[325328617,1714731039453,-600.0,0.00024,3]
[325328618,1714731039462,-155.78417517,0.00024,2]
[325328619,1714731039472,-613.00620686,0.00024214,2]
[325328620,1714731039481,-151.87422436,0.00024236,2]
[325328621,1714731039490,-160.48,0.00024329,15]
[325328622,1714731039500,-171.55,0.00024487,2]
[325328623,1714731039509,-500.0,0.00024657,2]
[325328624,1714731039519,-500.0,0.00024657,2]
[325328625,1714731039529,-555.53712837,0.00024657,2]
[325328626,1714731039539,-1000.0,0.000247,2]
[325328627,1714731039548,-2000.0,0.000249,2]
[325328628,1714731039558,-2000.0,0.0002491,2]
[325328629,1714731039568,-2823.612798,0.0002492,2]
[325328630,1714731039578,-287.12770696,0.00024957,2]
[325328631,1714731039588,-164.09578582,0.00024999,2]
[325328632,1714731039598,-5000.0,0.00025,2]
[325328633,1714731039606,-877.08,0.00025,2]
[325328634,1714731039616,-155.46650369,0.00025178,5]
[325328635,1714731039628,-964.55735073,0.000257,2]
[325328636,1714731039638,-1000.0,0.00025763,2]
[325328637,1714731039647,-650.0,0.00026,3]
[325328638,1714731039658,-2670.0,0.00026,3]
[325328639,1714731039670,-156.22184608,0.000261,2]
[325328640,1714731039681,-9594.6521887,0.000261,2]
[325328641,1714731039690,-362.51917808,0.000261,2]
[325328643,1714731039942,-190.80783043,0.000261,2]
[325328644,1714731039967,-1000.0,0.00026499,2]
[325328645,1714731039977,-1000.0,0.00026499,2]
[325328646,1714731039986,-1000.0,0.00026499,2]
[325328647,1714731039996,-1000.0,0.00026499,2]
[325328648,1714731040005,-1000.0,0.00026499,2]
[325328649,1714731040014,-1000.0,0.00026499,2]
[325328650,1714731040024,-1000.0,0.00026499,2]
[325328651,1714731040033,-1000.0,0.00026499,2]
[325328652,1714731040043,-1000.0,0.00026499,2]
[325328653,1714731040052,-1000.0,0.00026499,2]
[325328654,1714731040061,-1000.0,0.00026499,2]
[325328655,1714731040070,-9189.71076016,0.00026577,7]
[325328656,1714731040079,-1999.82575251,0.00026577,2]
[325328657,1714731040089,-224.71028306,0.00026588,2]
[325328658,1714731040098,-437.0,0.00026619,2]
[325328659,1714731040107,-309.033,0.00026619,2]
[325328660,1714731040117,-808.0,0.00026619,2]
[325328661,1714731040126,-611.0,0.00026619,2]
[325328662,1714731040136,-1786.0,0.00026619,2]
[325328663,1714731040145,-421.012,0.00026619,2]
[325328664,1714731040154,-1482.097,0.00026619,2]
[325328665,1714731040163,-150.807,0.00026619,2]
[325328666,1714731040172,-151.013,0.00026619,2]
[325328667,1714731040182,-2455.57,0.00026619,2]
[325328668,1714731040191,-1647.783,0.00026619,2]
[325328669,1714731040200,-444.287,0.00026619,2]
[325328670,1714731040210,-1143.459,0.00026619,2]
[325328671,1714731040220,-216.0,0.00026619,2]
[325328672,1714731040229,-3142.267,0.00026619,2]
[325328673,1714731040238,-5901.0,0.00026619,2]
[325328674,1714731040247,-2292.0,0.00026619,2]
[325328675,1714731040257,-24602.527,0.00026619,2]
[325328676,1714731040266,-288.0,0.00026619,2]
[325328677,1714731040276,-5739.0,0.00026619,2]
[325328678,1714731040285,-163.69417388,0.00026849,2]
[325328679,1714731040295,-7946.19324778,0.0002688,2]
[325328680,1714731040305,-544.96414974,0.000269,3]
[325328681,1714731040314,-634.24,0.000269,2]
[325328682,1714731040323,-283.05,0.000269,2]
[325328683,1714731040332,-1307.0,0.00026966,2]
[325328684,1714731040342,-2443.59246119,0.00026974,2]
[325328685,1714731040351,-400.0,0.00026974,120]
[325328686,1714731040360,-2000.0,0.00027,2]
[325328687,1714731040369,-2000.0,0.0002701,2]
[325328688,1714731040379,-159.88046271,0.00027018,2]
[325328689,1714731040388,-2000.0,0.0002702,2]
[325328690,1714731040397,-2000.0,0.0002703,2]
[325328691,1714731040406,-154.91831134,0.0002703,2]
[325328692,1714731040415,-2000.0,0.0002704,2]
[325328693,1714731040425,-151.87422436,0.00027045,2]
[325328694,1714731040434,-3501.970031,0.0002705,2]
[325328695,1714731040443,-187.33,0.00027243,2]
[325328696,1714731040452,-150.28,0.00027397,2]
[325328697,1714731040462,-2960.49,0.00027397,2]
[325328698,1714731040472,-301.7,0.00027397,10]
[325328699,1714731040482,-1000.0,0.000274,2]
[325328700,1714731040491,-153.42929399,0.00027414,2]
[325328701,1714731040500,-253.78538962,0.00027416,2]
[325328702,1714731040509,-224.55259295,0.0002757,2]
[325328703,1714731040519,-168.70521326,0.00027696,2]
[325328704,1714731040529,-21309.40091221,0.00027696,2]
[325328705,1714731040538,-165.76,0.00027714,2]
[325328706,1714731040548,-964.55735073,0.0002785,2]
[325328707,1714731040557,-1671.446023,0.00027915,2]
[325328708,1714731040566,-358.162705,0.00027915,2]
[325328709,1714731040576,-559.242963,0.00027915,2]
[325328710,1714731040585,-245.765022,0.00027915,2]
[325328711,1714731040594,-240.649765,0.00027915,2]
[325328712,1714731040604,-314.495366,0.00027915,2]
[325328713,1714731040618,-1746.120208,0.00027915,2]
[325328714,1714731040628,-559.242964,0.00027915,2]
[325328715,1714731040637,-374.442829,0.00027915,2]
[325328716,1714731040646,-3002.983423,0.00027915,2]
[325328717,1714731040655,-3952.44500006,0.00027951,2]
[325328718,1714731040665,-181.72407984,0.00027962,2]
[325328719,1714731040674,-488.38849224,0.00027976,2]
[325328720,1714731040683,-286.97446244,0.00027976,2]
[325328721,1714731040692,-268.65265571,0.00027976,2]
[325328722,1714731040701,-155.21849789,0.00027976,2]
[325328723,1714731040711,-288.81241473,0.00027976,2]
[325328724,1714731040720,-157.38776343,0.00027976,2]
[325328725,1714731040729,-167.32653408,0.00027976,2]
[325328726,1714731040739,-155.52429625,0.00027976,2]
[325328727,1714731040749,-317.01746459,0.00027976,2]
[325328728,1714731040758,-202.77419609,0.00027976,2]
[325328729,1714731040773,-157.11950137,0.00027976,2]
[325328730,1714731040783,-155.80144616,0.00027976,2]
[325328731,1714731040793,-157.68895284,0.00027976,2]
[325328732,1714731040802,-182.10715095,0.00027976,2]
[325328733,1714731040813,-713.43468894,0.00027976,2]
[325328734,1714731040823,-325.89609011,0.00027976,2]
[325328735,1714731040832,-155.75389114,0.00027976,2]
[325328736,1714731040842,-241.43405171,0.00027976,2]
[325328737,1714731040851,-155.14535433,0.00027976,2]
[325328738,1714731040861,-205.8661744,0.00027976,2]
[325328739,1714731040871,-320.02810305,0.00027976,2]
[325328740,1714731040880,-388.49778572,0.00027976,2]
[325328741,1714731040889,-177.08401672,0.00027976,2]
[325328742,1714731040899,-165.20489312,0.00027976,2]
[325328743,1714731040909,-204.0929013,0.00027976,2]
[325328744,1714731040918,-413.06779798,0.00027976,2]
[325328745,1714731040928,-155.0,0.00027976,2]
[325328746,1714731040937,-346.16050584,0.00027976,3]
[325328747,1714731040947,-452.64726722,0.00027976,2]
[325328748,1714731040956,-155.18648239,0.00027976,2]
[325328749,1714731040966,-155.0,0.00027976,2]
[325328750,1714731040977,-156.20847685,0.00027976,2]
[325328751,1714731040987,-305.25449563,0.00027976,2]
[325328752,1714731040996,-155.50254673,0.00027976,2]
[325328753,1714731041005,-155.58546375,0.00027976,2]
[325328754,1714731041014,-409.36988863,0.00027976,2]
[325328755,1714731041024,-155.85257639,0.00027976,2]
[325328756,1714731041033,-214.75242742,0.00027976,2]
[325328757,1714731041043,-1224.55602433,0.00027976,2]
[325328758,1714731041052,-621.84015726,0.00027976,2]
[325328759,1714731041061,-165.68744233,0.00027976,2]
[325328760,1714731041071,-155.10093137,0.00027976,2]
[325328761,1714731041080,-221.9885273,0.00027976,2]
[325328762,1714731041090,-175.69742539,0.00027976,2]
[325328763,1714731041099,-1068.28892115,0.00027976,2]
[325328764,1714731041108,-1667.16113497,0.00027976,2]
[325328765,1714731041117,-1745.60243718,0.00027976,2]
[325328766,1714731041126,-455.09871238,0.00027976,2]
[325328767,1714731041135,-157.31713301,0.00027976,2]
[325328768,1714731041144,-194.05039763,0.00027976,2]
[325328769,1714731041153,-162.73864695,0.00027976,2]
[325328770,1714731041163,-212.87980232,0.00027976,2]
[325328771,1714731041172,-264.71106287,0.00027976,2]
[325328772,1714731041181,-364.83359893,0.00027976,2]
[325328773,1714731041190,-194.51511767,0.00027976,2]
[325328774,1714731041199,-298.32588627,0.00027976,2]
[325328775,1714731041209,-472.76814409,0.00027976,2]
[325328776,1714731041219,-786.99155585,0.00027976,2]
[325328777,1714731041228,-433.30397884,0.00027976,2]
[325328778,1714731041237,-155.0,0.00027976,2]
[325328779,1714731041246,-1263.46797883,0.00027976,2]
[325328780,1714731041256,-283.44852378,0.00027976,2]
[325328781,1714731041265,-156.76340974,0.00027976,2]
[325328782,1714731041275,-628.58088692,0.00027976,2]
[325328783,1714731041285,-619.1524463,0.00027976,2]
[325328784,1714731041294,-155.11381527,0.00027976,2]
[325328785,1714731041303,-574.87184135,0.00027976,2]
[325328786,1714731041313,-200.12377056,0.00027976,2]
[325328787,1714731041322,-160.84935553,0.00027976,2]
[325328788,1714731041331,-188.73221684,0.00027976,2]
[325328789,1714731041341,-155.0,0.00027976,2]
[325328790,1714731041350,-862.83994575,0.00027976,3]
[325328791,1714731041359,-1874.96200979,0.00027976,2]
[325328792,1714731041369,-1774.10618573,0.00027976,2]
[325328793,1714731041379,-155.0,0.00027976,2]
[325328794,1714731041388,-1244.22522024,0.00027976,2]
[325328795,1714731041399,-247.82154532,0.00027976,2]
[325328796,1714731041410,-214.0002672,0.00027976,2]
[325328797,1714731041420,-155.0,0.00027976,2]
[325328798,1714731041430,-231.24039108,0.00027976,2]
[325328799,1714731041439,-158.45177316,0.00027976,7]
[325328800,1714731041449,-156.02229976,0.00027976,2]
[325328801,1714731041459,-155.69804417,0.00027976,2]
[325328802,1714731041473,-200.44666246,0.00027976,2]
[325328803,1714731041483,-155.85308628,0.00027976,2]
[325328804,1714731041493,-155.72839785,0.00027976,2]
[325328805,1714731041503,-155.31745909,0.00027976,2]
[325328806,1714731041513,-781.39947723,0.00027976,2]
[325328807,1714731041523,-190.24683471,0.00027976,2]
[325328808,1714731041533,-202.23422368,0.00027976,2]
[325328809,1714731041542,-171.48085819,0.00027976,2]
[325328810,1714731041551,-155.58162898,0.00027976,2]
[325328811,1714731041561,-289.76780159,0.00027976,2]
[325328812,1714731041570,-352.43032097,0.00027976,2]
[325328813,1714731041580,-156.08637497,0.00027976,2]
[325328814,1714731041589,-298.1530609,0.00027976,2]
[325328815,1714731041598,-301.64881617,0.00027976,2]
[325328816,1714731041607,-251.06996746,0.00027976,2]
[325328817,1714731041616,-500.0,0.00027976,2]
[325328818,1714731041625,-1798.73745493,0.00027977,2]
[325328819,1714731041635,-2413.75224764,0.00027977,2]
[325328820,1714731041644,-4107.32355274,0.00027977,2]
[325328821,1714731041654,-2940.58633766,0.00027977,2]
[325328822,1714731041664,-2065.17558087,0.00027977,2]
[325328823,1714731041673,-2615.43079908,0.00027977,2]
[325328824,1714731041683,-1135.12322587,0.00027977,2]
[325328825,1714731041694,-494.25996901,0.00027977,2]
[325328826,1714731041703,-414.76567386,0.00027977,2]
[325328827,1714731041713,-613.00620686,0.00027986,2]
[325328828,1714731041724,-972.257,0.0002804,2]
[325328829,1714731041733,-542.0,0.0002804,2]
[325328830,1714731041742,-1227.0,0.0002804,2]
[325328831,1714731041752,-1260.514,0.0002804,2]
[325328832,1714731041762,-210.49567394,0.00028088,2]
[325328833,1714731041774,-1000.0,0.00028105,2]
[325328834,1714731041783,-173.55712462,0.0002815,2]
[325328835,1714731041792,-150.28,0.00028203,2]
[325328836,1714731041802,-1671.446023,0.00028264,2]
[325328837,1714731041811,-358.162705,0.00028264,2]
[325328838,1714731041820,-559.242963,0.00028264,2]
[325328839,1714731041829,-245.765022,0.00028264,2]
[325328840,1714731041840,-240.649765,0.00028264,2]
[325328841,1714731041849,-314.495366,0.00028264,2]
[325328842,1714731041858,-1746.120208,0.00028264,2]
[325328843,1714731041867,-559.242964,0.00028264,2]
[325328844,1714731041877,-374.442829,0.00028264,2]
[325328845,1714731041886,-3002.983423,0.00028264,2]
[325328846,1714731041895,-163.69417388,0.00028276,2]
[325328847,1714731041904,-287.12770696,0.00028542,2]
[325328848,1714731041914,-1671.446023,0.00028613,2]
[325328849,1714731041923,-358.162705,0.00028613,2]
[325328850,1714731041932,-559.242963,0.00028613,2]
[325328851,1714731041941,-245.765022,0.00028613,2]
[325328852,1714731041951,-240.649765,0.00028613,2]
[325328853,1714731041960,-314.495366,0.00028613,2]
[325328854,1714731041970,-1746.120208,0.00028613,2]
[325328855,1714731041979,-559.242964,0.00028613,2]
[325328856,1714731041989,-374.442829,0.00028613,2]
[325328857,1714731041998,-3002.983423,0.00028613,2]
[325328858,1714731042007,-40301.22769543,0.00028613,2]
[325328859,1714731042017,-286970.0,0.00028798,2]
[325328860,1714731042026,-5000.89,0.000288,2]
[325328861,1714731042035,-189.66064792,0.00028855,2]
[325328862,1714731042044,-150.0,0.00028899,10]
[325328863,1714731042054,-907.29330931,0.000289,3]
[325328864,1714731042063,-349987.36676847,0.000289,2]
[325328865,1714731042072,-1800.0,0.000289,10]
[325328866,1714731042081,-358.162705,0.00028962,2]
[325328867,1714731042091,-559.242963,0.00028962,2]
[325328868,1714731042099,-1671.446023,0.00028962,2]
[325328869,1714731042108,-245.765022,0.00028962,2]
[325328870,1714731042118,-240.649765,0.00028962,2]
[325328871,1714731042127,-314.495366,0.00028962,2]
[325328872,1714731042136,-1746.120208,0.00028962,2]
[325328873,1714731042145,-559.242964,0.00028962,2]
[325328874,1714731042154,-374.442829,0.00028962,2]
[325328875,1714731042164,-3002.983423,0.00028962,2]
[325328876,1714731042174,-860.56,0.00028984,2]
[325328877,1714731042183,-860.56,0.00028984,2]
[325328878,1714731042192,-2396.0,0.0002899,24]
[325328879,1714731042208,-563.69488817,0.00029,2]
[325328880,1714731042218,-150.28,0.00029009,2]
[325328881,1714731042227,-154.51082583,0.00029028,2]
[325328882,1714731042236,-150.0,0.00029074,10]
[325328883,1714731042246,-155.49931898,0.00029074,10]
[325328884,1714731042255,-696352.73967389,0.00029074,3]
[325328885,1714731042265,-877.08,0.000291,2]
[325328886,1714731042274,-1051412.29912891,0.00029292,30]
[325328887,1714731042326,-669445.66217639,0.00029292,30]
[325328888,1714731042336,-161189.61164591,0.00029292,120]
[325328889,1714731042346,-1421.88916862,0.00029292,2]
[325328890,1714731042355,-685.0,0.00029292,30]
[325328891,1714731042364,-189.0,0.00029292,30]
[325328892,1714731042373,-570.0,0.00029292,4]
[325328893,1714731042382,-151.51173512,0.00029292,2]
[325328894,1714731042392,-151.51173512,0.00029292,2]
[325328895,1714731042401,-559.242963,0.0002931,2]
[325328896,1714731042410,-1671.446023,0.0002931,2]
[325328897,1714731042419,-245.765022,0.0002931,2]
[325328898,1714731042428,-358.162705,0.0002931,2]
[325328899,1714731042438,-240.649765,0.0002931,2]
[325328900,1714731042447,-314.495366,0.0002931,2]
[325328901,1714731042456,-1746.120208,0.0002931,2]
[325328902,1714731042465,-559.242964,0.0002931,2]
[325328903,1714731042476,-374.442829,0.0002931,2]
[325328904,1714731042485,-3002.983423,0.0002931,2]
[325328905,1714731042495,-372.459,0.00029619,2]
[325328906,1714731042504,-288.0,0.00029619,2]
[325328907,1714731042514,-184.037,0.00029619,2]
[325328908,1714731042523,-171.55,0.00029683,2]
[325328909,1714731042532,-224.71028306,0.00029766,2]
[325328910,1714731042542,-12619.37941851,0.000298,2]
[325328911,1714731042551,-7726.23,0.00029815,2]
[325328912,1714731042561,-150.28,0.00029815,2]
[325328913,1714731042571,-151.87422436,0.00029854,2]
[325328914,1714731042580,-155.0,0.0003,4]
[325328915,1714731042590,-431.87984043,0.0003,30]
[325328916,1714731042598,-234.76874776,0.0003,120]
[325328917,1714731042608,-10000.0,0.0003,15]
[325328918,1714731042617,-157.94898776,0.0003,4]
[325328919,1714731042626,-207.0,0.0003,2]
[325328920,1714731042635,-964.55735073,0.0003,2]
[325328921,1714731042646,-240.639879,0.00030017,2]
[325328922,1714731042655,-992.0,0.000301,2]
[325328923,1714731042666,-151.64124581,0.00030141,7]
[325328924,1714731042676,-180.0,0.00030258,2]
[325328925,1714731042687,-400.0,0.00030346,120]
[325328926,1714731042697,-240.639879,0.00030392,2]
[325328927,1714731042706,-156.22184608,0.000305,2]
[325328928,1714731042715,-150.28,0.0003062,2]
[325328929,1714731042725,-500.0,0.00030751,2]
[325328930,1714731042734,-240.639879,0.00030767,2]
[325328931,1714731042743,-163.69417389,0.0003097,7]
[325328932,1714731042755,-492.26920761,0.00031,5]
[325328933,1714731042768,-479.0,0.00031,15]
[325328934,1714731042777,-634.24,0.00031,2]
[325328935,1714731042786,-283.05,0.00031,2]
[325328936,1714731042796,-1011.92,0.00031,2]
[325328937,1714731042805,-312.18,0.00031,2]
[325328938,1714731042815,-154.51082583,0.00031071,7]
[325328939,1714731042824,-240.639879,0.00031143,2]
[325328940,1714731042833,-11521.79487968,0.0003121,2]
[325328941,1714731042843,-171.56979217,0.000314,30]
[325328942,1714731042854,-150.28,0.00031426,2]
[325328943,1714731042863,-1374.84,0.00031506,7]
[325328944,1714731042873,-1374.84,0.00031506,7]
[325328946,1714731042882,-1374.84,0.00031506,7]
[325328948,1714731042892,-1374.84,0.00031506,7]
[325328949,1714731042901,-1374.84,0.00031506,7]
[325328950,1714731042910,-1374.84,0.00031506,7]
[325328951,1714731042920,-1374.84,0.00031506,7]
[325328952,1714731042930,-1374.84,0.00031506,7]
[325328953,1714731042939,-1374.84,0.00031506,7]
[325328954,1714731042948,-1374.84,0.00031506,7]
[325328955,1714731042958,-1374.84,0.00031506,7]
[325328956,1714731042968,-1374.84,0.00031506,7]
[325328957,1714731042979,-1374.84,0.00031506,7]
[325328958,1714731042988,-1374.84,0.00031506,7]
[325328959,1714731042997,-1374.84,0.00031506,7]
[325328960,1714731043006,-1374.84,0.00031506,7]
[325328961,1714731043015,-1374.84,0.00031506,7]
[325328962,1714731043024,-1374.84,0.00031506,7]
[325328963,1714731043033,-1374.84,0.00031506,7]
[325328964,1714731043042,-1374.84,0.00031506,7]
[325328965,1714731043051,-1374.84,0.00031506,7]
[325328967,1714731043060,-1374.84,0.00031506,7]
[325328969,1714731043069,-1374.84,0.00031506,7]
[325328970,1714731043078,-1374.9700486,0.00031506,7]
[325328971,1714731043087,-240.639879,0.00031518,2]
[325328973,1714731043096,-414.63,0.00031644,2]
[325328974,1714731043106,-877.08,0.000317,2]
[325328975,1714731043115,-613.00620686,0.00031757,2]
[325328976,1714731043124,-1011.92,0.0003187,2]
[325328977,1714731043133,-332.6433445,0.00032,4]
[325328978,1714731043142,-312.18,0.0003211,2]
[325328980,1714731043152,-287.12770696,0.00032128,2]
[325328981,1714731043162,-164.09578582,0.0003215,2]
[325328982,1714731043171,-964.55735073,0.0003215,2]
[325328983,1714731043180,-150.28,0.00032232,2]
[325328984,1714731043189,-167.85745388,0.0003259,2]
[325328985,1714731043199,-288.0,0.00032619,2]
[325328986,1714731043208,-151.87422436,0.00032663,2]
[325328987,1714731043218,-1011.92,0.0003274,2]
[325328988,1714731043227,-3535.32188215,0.000328,2]
[325328989,1714731043237,-1451.21580741,0.0003281,2]
[325328990,1714731043246,-321.85,0.00032877,2]
[325328991,1714731043256,-56209.2,0.00032877,2]
[325328992,1714731043266,-37719.81,0.00032877,2]
[325328993,1714731043275,-1000.0,0.00032884,15]
[325328994,1714731043285,-992.88022221,0.000329,2]
[325328995,1714731043295,-224.71028306,0.00032944,2]
[325328996,1714731043304,-153.72003342,0.00032971,7]
[325328997,1714731043314,-15052.43912096,0.00033,2]
[325328998,1714731043323,-220000.0,0.00033,3]
[325328999,1714731043332,-24364.76380094,0.00033,2]
[325329000,1714731043341,-974.23486942,0.00033,2]
[325329001,1714731043350,-1687.746253,0.00033,2]
[325329002,1714731043360,-177.0,0.00033,2]
[325329003,1714731043369,-150.28,0.00033038,2]
[325329004,1714731043378,-312.18,0.0003322,2]
[325329005,1714731043388,-700.0,0.000333,10]
[325329006,1714731043397,-1138.95510935,0.000335,2]
[325329007,1714731043406,-634.24,0.000335,2]
[325329008,1714731043416,-283.05,0.000335,2]
[325329009,1714731043425,-1011.92,0.0003361,2]
[325329010,1714731043435,-860.56,0.00033669,2]
[325329011,1714731043445,-400.0,0.00033717,120]
[325329012,1714731043454,-165.76,0.00033785,2]
[325329013,1714731043463,-150.28,0.00033844,2]
[325329014,1714731043473,-700.0,0.00033848,10]
[325329015,1714731043482,-303.51,0.00033924,2]
[325329016,1714731043491,-162.78,0.00033924,2]
[325329017,1714731043500,-5689.84975491,0.00033981,2]
[325329018,1714731043509,-5000.0,0.00033981,2]
[325329019,1714731043518,-5000.0,0.00033981,2]
[325329020,1714731043528,-5000.0,0.00033981,2]
[325329021,1714731043537,-5000.0,0.00033981,2]
[325329022,1714731043546,-964.55735073,0.000343,2]
[325329023,1714731043555,-312.18,0.0003433,2]
[325329024,1714731043564,-700.0,0.00034396,10]
[325329025,1714731043574,-1011.92,0.0003448,2]
[325329026,1714731043583,-860.56,0.00034504,2]
[325329027,1714731043592,-1797.01,0.00034598,2]
[325329028,1714731043602,-1797.01,0.00034598,2]
[325329029,1714731043611,-1797.01,0.00034598,2]
[325329030,1714731043620,-1797.01,0.00034598,2]
[325329031,1714731043629,-1797.01,0.00034598,2]
[325329032,1714731043639,-1797.01,0.00034598,2]
[325329033,1714731043648,-1797.01,0.00034598,2]
[325329034,1714731043657,-1797.01,0.00034598,2]
[325329035,1714731043666,-1797.01,0.00034598,2]
[325329036,1714731043675,-1797.01,0.00034598,2]
[325329037,1714731043685,-1797.01,0.00034598,2]
[325329038,1714731043694,-1797.01,0.00034598,2]
[325329039,1714731043704,-1797.01,0.00034598,2]
[325329040,1714731043713,-1797.01,0.00034598,2]
[325329041,1714731043723,-1797.01,0.00034598,2]
[325329042,1714731043732,-1797.01,0.00034598,2]
[325329043,1714731043741,-1797.01,0.00034598,2]
[325329044,1714731043753,-1797.01,0.00034598,2]
[325329045,1714731043763,-1797.01,0.00034598,2]
[325329046,1714731043773,-1797.01,0.00034598,2]
[325329047,1714731043783,-1797.01,0.00034598,2]
[325329048,1714731043794,-1797.01,0.00034598,2]
[325329049,1714731043803,-1797.01,0.00034598,2]
[325329050,1714731043812,-1797.19033372,0.00034598,2]
[325329053,1714731044048,-150.28,0.0003465,2]
[325329054,1714731044058,-437.12,0.00034745,2]
[325329055,1714731044067,-150.0,0.00034745,2]
[325329056,1714731044077,-150.0,0.00034745,2]
[325329057,1714731044086,-150.0,0.00034745,2]
[325329058,1714731044095,-150.0,0.00034745,2]
[325329059,1714731044105,-1044.24,0.00034745,2]
[325329060,1714731044114,-150.0,0.00034745,2]
[325329061,1714731044124,-377.46,0.00034745,2]
[325329062,1714731044134,-150.0,0.00034745,2]
[325329063,1714731044143,-419.58,0.00034745,2]
[325329064,1714731044153,-350.66,0.00034745,2]
[325329065,1714731044164,-300.38,0.00034745,2]
[325329066,1714731044173,-150.0,0.00034745,2]
[325329067,1714731044183,-150.0,0.00034745,2]
[325329068,1714731044192,-419.58,0.00034745,2]
[325329069,1714731044202,-150.0,0.00034745,2]
[325329070,1714731044212,-150.0,0.00034745,2]
[325329071,1714731044222,-419.58,0.00034745,2]
[325329072,1714731044231,-150.0,0.00034745,2]
[325329073,1714731044241,-419.58,0.00034745,2]
[325329074,1714731044251,-150.0,0.00034745,2]
[325329075,1714731044260,-419.08,0.00034745,2]
[325329076,1714731044270,-325.94,0.00034745,2]
[325329077,1714731044279,-303.61,0.00034745,2]
[325329078,1714731044289,-150.0,0.00034745,2]
[325329079,1714731044299,-911.57,0.00034745,2]
[325329080,1714731044309,-868.06,0.00034745,2]
[325329081,1714731044318,-150.0,0.00034745,2]
[325329082,1714731044328,-911.57,0.00034745,2]
[325329083,1714731044338,-414.36,0.00034745,2]
[325329084,1714731044347,-150.0,0.00034745,2]
[325329085,1714731044357,-414.36,0.00034745,2]
[325329086,1714731044366,-414.36,0.00034745,2]
[325329087,1714731044376,-414.36,0.00034745,2]
[325329088,1714731044385,-414.36,0.00034745,2]
[325329089,1714731044396,-413.41,0.00034745,2]
[325329090,1714731044405,-2861.52,0.000348,2]
[325329091,1714731044415,-2861.52,0.000348,2]
[325329092,1714731044424,-2861.52,0.000348,2]
[325329093,1714731044434,-26326.18487517,0.000349,2]
[325329094,1714731044444,-414.96895238,0.000349,30]
[325329095,1714731044454,-156.22184608,0.000349,2]
[325329096,1714731044463,-700.0,0.00034944,10]
[325329097,1714731044473,-676.05,0.00034954,2]
[325329098,1714731044482,-16428.56692108,0.00035,4]
[325329099,1714731044491,-155.0,0.00035,15]
[325329100,1714731044501,-674.99038721,0.00035,30]
[325329101,1714731044511,-20266.6225097,0.00035,6]
[325329102,1714731044520,-20266.87028602,0.00035,6]
[325329103,1714731044529,-20267.61961073,0.00035,6]
[325329104,1714731044539,-20266.90455585,0.00035,6]
[325329105,1714731044549,-153.72003342,0.00035,7]
[325329106,1714731044559,-1000.0,0.00035017,15]
[325329107,1714731044568,-500.0,0.00035017,10]
[325329108,1714731044578,-200.0,0.00035017,10]
[325329109,1714731044587,-2954.0,0.000352,2]
[325329110,1714731044597,-182.0,0.000353,38]
[325329111,1714731044607,-430.0,0.000353,2]
[325329112,1714731044617,-1011.92,0.0003535,2]
[325329113,1714731044626,-533.079281,0.0003544,2]
[325329114,1714731044637,-150.28,0.00035455,2]
[325329115,1714731044647,-151.87422436,0.00035472,2]
[325329116,1714731044656,-700.0,0.00035492,10]